bitfinex/quotes_ETHUSD_20260113
["timestamp","ask_amount","ask_price","bid_price","bid_amount"]
[1768337375237,4.46643994,3198.6,3198.3,0.002]
[1768337376823,4.46643994,3198.6,3198.0,0.002]
[1768337376824,1.34692334,3198.5,3198.0,0.002]
[1768337377026,1.34692334,3198.3,3198.0,0.002]
[1768337377240,1.59192334,3198.2,3197.6,0.002]
[1768337377542,1.34692334,3198.1,3197.6,0.002]
[1768337379457,4.47383771,3198.1,3197.6,0.002]
[1768337380528,1.34692334,3198.0,3197.6,0.002]
[1768337380729,0.76007521,3197.9,3197.6,0.0333]
[1768337380929,0.245,3197.8,3197.6,0.0333]
[1768337382433,3.37217565,3197.8,3197.6,0.0333]
[1768337383055,4.71909899,3197.8,3197.6,0.0333]
[1768337383226,1.59192334,3197.8,3197.6,0.0333]
[1768337383426,0.54790951,3197.7,3197.6,0.0333]
[1768337383855,0.245,3197.8,3197.6,0.0333]
[1768337384053,3.37218038,3197.8,3197.6,0.0333]
[1768337384257,0.245,3197.8,3197.6,0.0333]
[1768337384463,3.37217111,3197.8,3197.6,0.0333]
[1768337384960,0.245,3197.8,3197.6,0.0333]
[1768337385164,0.54790877,3197.7,3197.6,0.0333]
[1768337386547,5.02207981,3197.7,3197.3,0.002]
[1768337386880,5.02207981,3197.7,3196.7,0.002]
[1768337386881,1.34692334,3197.5,3196.7,0.002]
[1768337387044,1.34692334,3197.5,3196.7,1.39210667]
[1768337387250,0.60353377,3197.4,3196.7,1.39210667]
[1768337387450,0.245,3197.3,3196.7,1.39210667]
[1768337387672,6.28033766,3197.3,3196.7,0.002]
[1768337387879,6.28033766,3197.3,3196.4,0.002]
[1768337387880,1.34692334,3197.2,3196.4,1.39210667]
[1768337388253,0.245,3197.3,3196.4,1.39210667]
[1768337388254,3.37269544,3197.3,3196.4,1.39210667]
[1768337388585,0.33726954,3197.2,3196.4,1.39210667]
[1768337389091,1.34692334,3198.1,3196.5,1.39010667]
[1768337389378,0.001,3198.3,3196.5,1.39010667]
[1768337389379,0.245,3198.0,3196.7,1.39010667]
[1768337389586,0.245,3198.0,3196.9,1.39010667]
[1768337390377,3.12705212,3197.9,3197.0,1.39010667]
[1768337390582,3.3719962,3198.0,3197.0,1.39010667]
[1768337390779,1.34692334,3197.9,3197.1,1.39010667]
[1768337391162,1.34692334,3197.9,3196.9,4.51809873]
[1768337391483,1.34692334,3197.9,3197.0,1.39010667]
[1768337392988,1.34692334,3197.9,3197.1,1.39010667]
[1768337393182,1.34692334,3197.8,3196.6,1.39010667]
[1768337393385,1.34692334,3197.8,3196.9,1.39010667]
[1768337394286,1.38578608,3197.7,3197.0,1.39010667]
[1768337394687,1.38678608,3197.7,3196.6,1.39010667]
[1768337395700,7.60161434,3197.6,3196.6,1.39010667]
[1768337395870,0.28486274,3197.5,3196.6,1.39010667]
[1768337396071,0.78864771,3197.4,3196.6,1.39010667]
[1768337396895,1.38578608,3197.3,3196.4,1.39210667]
[1768337397092,1.34692334,3197.3,3196.4,1.39210667]
[1768337397688,1.38578608,3197.2,3196.4,1.39210667]
[1768337397886,4.51354453,3197.2,3196.4,1.39210667]
[1768337398086,1.79827779,3197.1,3196.4,0.002]
[1768337398285,1.59292334,3197.0,3196.4,0.002]
[1768337398795,0.246,3197.0,3196.4,0.002]
[1768337400067,7.84883836,3197.0,3196.4,0.002]
[1768337400268,7.84883836,3197.0,3196.0,0.002]
[1768337400269,1.34692334,3196.5,3196.0,0.002]
[1768337400488,9.38387253,3197.0,3196.0,0.002]
[1768337400489,0.60353377,3196.4,3196.0,1.39210667]
[1768337400698,3.5792856,3197.1,3196.0,0.002]
[1768337400899,0.45135445,3197.1,3196.4,1.39010667]
[1768337401104,1.34792334,3197.7,3196.5,1.39010667]
[1768337401408,0.001,3197.7,3196.9,1.39010667]
[1768337401783,0.001,3197.7,3197.1,1.39010667]
[1768337402385,0.001,3197.7,3196.7,4.51826851]
[1768337402585,0.001,3197.7,3196.6,1.63510667]
[1768337402586,0.03886274,3197.6,3196.6,1.63510667]
[1768337402786,4.68841432,3197.5,3196.6,1.63510667]
[1768337402980,0.60742004,3197.4,3196.6,1.63510667]
[1768337403179,1.38578608,3197.3,3196.1,1.39010667]
[1768337403380,1.38578608,3197.3,3196.0,0.002]
[1768337403381,1.34692334,3197.1,3196.0,3.1309105]
[1768337403677,0.001,3197.7,3196.0,3.1309105]
[1768337403678,0.001,3197.7,3196.7,1.39010667]
[1768337403906,0.001,3197.7,3196.8,1.42138795]
[1768337404115,0.31380931,3197.7,3196.8,1.39010667]
[1768337404990,0.001,3198.3,3197.1,1.32808411]
[1768337405315,3.12768877,3198.3,3197.1,1.32808411]
[1768337405478,1.34539929,3198.2,3196.8,1.32808411]
[1768337405682,1.38426203,3198.1,3196.8,1.32808411]
[1768337405890,1.34539929,3198.1,3197.0,1.32808411]
[1768337406096,0.001,3198.0,3197.0,1.32808411]
[1768337406425,0.4483189,3198.0,3197.0,1.32808411]
[1768337406593,0.001,3198.0,3197.0,1.32808411]
[1768337408014,0.001,3198.0,3197.0,3.12790376]
[1768337408015,1.43290289,3198.0,3197.0,3.12790376]
[1768337408218,0.001,3198.0,3197.1,1.35130904]
[1768337408919,0.001,3198.0,3196.8,4.4794086]
[1768337409117,1.43290289,3198.0,3196.8,4.4794086]
[1768337409317,1.43290289,3198.0,3196.9,4.47930507]
[1768337409710,0.246,3197.9,3196.9,4.47930507]
[1768337409908,0.16789029,3197.8,3197.0,1.35130904]
[1768337410222,3.12797577,3198.0,3197.0,1.35130904]
[1768337410523,3.37397577,3198.0,3197.0,1.35130904]
[1768337411821,3.37397577,3198.0,3197.0,4.47924011]
[1768337412021,0.001,3198.0,3197.1,1.35130904]
[1768337412519,1.43190289,3197.9,3196.9,3.12801234]
[1768337412726,1.88789223,3197.8,3196.8,1.35130904]
[1768337413019,0.45598934,3197.8,3196.8,1.35130904]
[1768337413221,0.70198934,3197.8,3197.1,1.35130904]
[1768337413724,3.82919266,3197.8,3197.1,1.35130904]
[1768337414100,3.82919266,3197.8,3196.8,1.35130904]
[1768337414311,3.82919266,3197.8,3196.8,4.47942721]
[1768337414312,0.69562625,3197.7,3196.8,4.47942721]
[1768337414622,0.69562625,3197.7,3196.7,0.245]
[1768337414623,2.12752914,3197.7,3196.7,0.245]
[1768337414808,0.69562625,3197.7,3196.9,4.47933834]
[1768337415000,0.69562625,3197.7,3197.0,1.35130904]
[1768337415209,3.12720332,3197.8,3197.0,1.35130904]
[1768337415590,6.25440664,3197.8,3197.0,1.35130904]
[1768337415794,3.12720332,3197.8,3196.7,1.59630904]
[1768337416397,3.37320332,3197.8,3196.9,1.35130904]
[1768337416824,7.84214758,3197.8,3196.9,1.35130904]
[1768337417524,7.84214758,3197.8,3196.0,0.002]
[1768337417525,1.34174094,3197.1,3196.0,0.002]
[1768337417711,0.246,3197.1,3196.0,0.03328911]
[1768337417894,3.37387475,3197.1,3196.9,0.002]
[1768337418097,6.5017495,3197.1,3196.0,0.002]
[1768337418298,0.65017495,3197.0,3196.0,0.002]
[1768337418909,3.12787475,3197.1,3196.0,0.002]
[1768337419109,6.2557495,3197.1,3196.0,0.002]
[1768337419823,6.2557495,3197.1,3196.1,1.42863168]
[1768337420017,7.59749044,3197.1,3196.1,1.42863168]
[1768337420217,7.59749044,3197.1,3196.1,4.55742738]
[1768337420426,0.78434904,3197.0,3196.1,4.55742738]
[1768337420829,0.78434904,3197.0,3196.2,1.42863168]
[1768337422124,3.12803027,3196.9,3196.2,1.42863168]
[1768337422327,3.91231585,3197.0,3196.2,4.55734469]
[1768337422531,3.12796681,3197.0,3196.3,1.42863168]
[1768337422896,3.12763894,3197.3,3196.5,1.42863168]
[1768337423118,6.25412169,3197.9,3196.7,1.42863168]
[1768337423429,6.25412169,3197.9,3196.2,6.25736301]
[1768337423430,0.246,3197.8,3196.9,1.42863168]
[1768337423639,0.001,3198.0,3197.3,1.42863168]
[1768337424225,0.001,3198.0,3197.5,1.42863168]
[1768337426636,0.001,3198.0,3197.6,1.42863168]
[1768337428243,0.001,3198.0,3197.7,4.55587938]
[1768337428441,0.001,3198.0,3197.8,1.42863168]
[1768337430013,0.001,3198.0,3197.7,3.1272477]
[1768337430804,0.001,3198.0,3197.8,1.42863168]
[1768337431858,0.001,3198.3,3197.8,1.42863168]
[1768337432043,0.001,3198.3,3197.7,6.2544954]
[1768337432444,0.001,3198.3,3197.8,1.42863168]
[1768337432845,0.001,3198.3,3197.8,4.55570992]
[1768337433165,0.001,3198.3,3197.9,1.42863168]
[1768337434354,0.001,3198.3,3198.0,4.55558602]
[1768337436062,0.001,3198.3,3198.0,1.42863168]
[1768337436636,0.001,3198.3,3198.0,4.55556239]
[1768337436836,0.001,3198.3,3198.1,1.34339191]
[1768337437482,0.001,3198.3,3198.2,1.34339191]
[1768337437699,0.001,3199.0,3198.3,1.34339191]
[1768337438778,0.001,3199.0,3198.5,1.34339191]
[1768337439029,0.00080112,3199.3,3198.5,1.34339191]
[1768337439273,0.00080112,3199.3,3198.4,10.72308175]
[1768337439475,0.00080112,3199.3,3198.5,1.07230818]
[1768337440642,0.00080112,3199.3,3198.6,6.25273556]
[1768337440840,0.00080112,3199.3,3198.5,3.37143201]
[1768337441037,1.36534111,3199.3,3198.5,0.245]
[1768337442076,1.36453999,3199.1,3198.5,0.245]
[1768337442374,1.36453999,3199.1,3198.3,0.002]
[1768337442878,1.36453999,3198.9,3198.3,0.002]
[1768337443046,0.76174937,3198.8,3198.3,0.002]
[1768337443963,2.12628936,3198.8,3198.3,0.002]
[1768337444353,1.36453999,3198.7,3198.1,0.243]
[1768337444570,1.36453999,3198.7,3198.1,0.241]
[1768337444771,1.36453999,3198.7,3198.0,0.002]
[1768337444976,0.21262894,3198.6,3198.0,0.002]
[1768337445670,0.001,3199.0,3198.0,1.34539191]
[1768337445873,4.49061584,3198.9,3198.0,1.34539191]
[1768337446041,1.40340273,3198.8,3198.0,0.002]
[1768337446246,1.36453999,3198.8,3198.0,0.002]
[1768337446981,3.12627004,3198.7,3198.0,0.002]
[1768337447284,0.449081,3198.6,3198.0,0.002]
[1768337448384,1.81362099,3198.6,3198.0,0.002]
[1768337449380,4.94001461,3198.6,3198.0,0.002]
[1768337449683,1.36453999,3198.5,3197.5,4.46683195]
[1768337449982,2.17506709,3198.4,3197.5,7.59427526]
[1768337450183,0.8105271,3198.4,3197.6,1.34339191]
[1768337452392,1.36453999,3198.3,3197.1,1.58839191]
[1768337452566,1.36453999,3198.3,3197.1,0.245]
[1768337453385,1.36453999,3198.0,3197.1,3.37281329]
[1768337453589,1.97017043,3197.9,3197.1,3.37281329]
[1768337453959,1.97017043,3197.9,3197.1,0.245]
[1768337454162,1.97017043,3197.9,3197.1,3.37281973]
[1768337454874,5.09725183,3197.9,3197.1,3.37281973]
[1768337455207,2.17506709,3198.4,3197.2,1.37466927]
[1768337455416,3.75911636,3199.5,3197.2,1.37466927]
[1768337455417,4.73620102,3198.3,3197.2,1.34339191]
[1768337455582,4.49120102,3198.3,3197.4,0.002]
[1768337455784,0.001,3198.1,3197.4,0.002]
[1768337457380,0.001,3198.1,3197.4,1.34539191]
[1768337457576,0.001,3198.1,3197.6,1.34339191]
[1768337457783,0.001,3198.1,3197.8,1.34339191]
[1768337457972,0.001,3198.1,3197.8,1.5022311]
[1768337458173,0.03886274,3198.7,3197.8,1.5022311]
[1768337458767,1.36453999,3198.8,3197.8,1.5022311]
[1768337458988,4.49080094,3198.8,3197.9,3.12705212]
[1768337460083,1.36453999,3198.8,3197.9,6.25410424]
[1768337460288,0.001,3199.0,3198.0,1.34339191]
[1768337460894,0.001,3199.0,3197.9,7.05423777]
[1768337460895,1.36453999,3198.9,3197.9,0.80013353]
[1768337461064,1.36453999,3198.7,3197.7,3.37219882]
[1768337461271,1.36453999,3198.5,3197.7,0.245]
[1768337463020,1.36453999,3198.3,3197.4,0.002]
[1768337463392,0.245,3198.6,3197.5,1.34339191]
[1768337463591,0.245,3198.6,3197.7,1.34339191]
[1768337463796,1.60953999,3198.6,3197.7,1.34339191]
[1768337463991,1.60953999,3198.6,3197.6,0.76317025]
[1768337464534,1.36453999,3198.6,3197.6,0.76317025]
[1768337465693,4.50955126,3198.5,3197.6,3.8904997]
[1768337465935,1.38308573,3198.4,3197.6,3.1273285]
[1768337466496,1.38308573,3198.4,3197.6,3.12732902]
[1768337466923,1.38308573,3198.4,3197.6,3.12734063]
[1768337467111,1.38308573,3198.4,3197.4,0.002]
[1768337467309,1.42194847,3198.4,3197.4,0.002]
[1768337467723,1.38308573,3198.2,3197.4,0.002]
[1768337467933,1.42194847,3198.1,3197.4,0.002]
[1768337468323,1.38308573,3198.1,3197.4,0.002]
[1768337469103,0.001,3198.3,3197.4,1.41451894]
[1768337469269,0.001,3198.3,3197.6,1.41251894]
[1768337469567,1.38308573,3198.2,3197.4,0.002]
[1768337470565,4.5099423,3198.1,3197.4,0.002]
[1768337470864,1.38308573,3198.0,3197.4,0.002]
[1768337471222,4.50987279,3198.2,3197.4,0.002]
[1768337471418,7.63665985,3198.2,3197.4,0.002]
[1768337471623,1.38308573,3198.1,3197.4,0.002]
[1768337472547,3.12695434,3198.0,3197.4,0.002]
[1768337472738,4.51004007,3198.0,3197.4,0.002]
[1768337473068,1.38308573,3197.8,3196.7,3.12617675]
[1768337473357,0.69600401,3197.9,3196.9,4.5404925]
[1768337473542,2.07908974,3197.9,3196.9,1.41251894]
[1768337473715,0.83329984,3197.8,3196.9,1.41251894]
[1768337473917,0.83329984,3197.8,3196.9,4.54054741]
[1768337474110,0.001,3198.3,3197.2,1.41251894]
[1768337474313,3.12704029,3199.0,3198.1,1.41251894]
[1768337475049,4.51012602,3199.0,3198.1,1.41251894]
[1768337475221,1.38408573,3199.0,3198.1,1.41251894]
[1768337476042,0.001,3199.0,3198.1,1.41251894]
[1768337476217,0.001,3199.0,3198.2,0.79113935]
[1768337476420,0.001,3199.0,3198.3,3.12666103]
[1768337477646,0.001,3199.0,3198.3,7.6393304]
[1768337477824,0.001,3199.0,3198.4,1.38600834]
[1768337478029,0.001,3199.0,3198.3,6.25332206]
[1768337478338,0.001,3199.0,3198.4,0.70444614]
[1768337478712,0.001,3199.0,3198.6,1.38600834]
[1768337479645,0.001,3198.7,3198.6,1.63100834]
[1768337480345,0.001,3199.0,3198.7,1.38600834]
[1768337480851,0.001,3199.0,3198.8,4.51218065]
[1768337481036,0.001,3199.0,3198.9,0.7638362]
[1768337483123,0.001,3199.0,3198.9,3.88991078]
[1768337484190,0.00080112,3199.3,3198.9,7.01598536]
[1768337484726,0.00080112,3199.3,3198.9,3.88991078]
[1768337484951,0.00080112,3199.3,3198.7,3.12625391]
[1768337485119,1.36740731,3199.3,3198.5,3.37144954]
[1768337485325,1.36740731,3199.3,3198.6,6.25273556]
[1768337487736,1.36740731,3199.3,3198.6,3.12636778]
[1768337487974,1.36740731,3199.3,3198.6,6.25273556]
[1768337488175,1.40546893,3199.2,3198.5,0.245]
[1768337488376,1.36660619,3199.0,3198.5,3.37146531]
[1768337488540,1.36660619,3199.0,3198.5,0.245]
[1768337488853,1.36660619,3199.2,3198.5,6.25293106]
[1768337489461,1.36660619,3199.2,3198.4,6.25312656]
[1768337490642,1.52784692,3199.2,3198.3,3.12663589]
[1768337491570,1.52784692,3199.2,3198.3,6.25329692]
[1768337492273,0.002,3199.0,3198.3,6.25329692]
[1768337492683,1.36860619,3199.0,3198.3,6.25329692]
[1768337492995,1.36860619,3199.0,3197.9,0.002]
[1768337492996,1.61160619,3198.9,3197.9,0.002]
[1768337493158,1.53185308,3198.8,3197.9,0.002]
[1768337493344,1.61160619,3198.7,3197.9,0.002]
[1768337493549,1.36660619,3198.7,3197.9,0.002]
[1768337494043,1.36660619,3198.6,3197.5,0.002]
[1768337494442,1.36660619,3198.4,3197.5,0.002]
[1768337494840,1.52776681,3198.3,3197.5,0.002]
[1768337495045,0.16116062,3198.3,3197.5,0.002]
[1768337495253,1.40645797,3198.5,3197.5,1.37074503]
[1768337495472,1.40645797,3198.5,3197.5,1.3394706]
[1768337495649,1.40645797,3198.4,3197.5,3.12935061]
[1768337495976,1.40645797,3198.4,3197.5,6.25679392]
[1768337496196,1.40645797,3198.4,3197.5,3.12935061]
[1768337496352,1.40645797,3198.4,3197.5,6.25679392]
[1768337496681,1.88424697,3198.4,3197.5,6.25679392]
[1768337496868,1.88424697,3198.4,3197.5,3.12935061]
[1768337497461,1.40645797,3198.4,3197.5,3.12935061]
[1768337497664,1.40645797,3198.4,3197.5,0.002]
[1768337499552,1.40645797,3198.7,3197.7,1.3374706]
[1768337499859,4.53274488,3198.7,3197.7,1.3374706]
[1768337500056,1.40645797,3198.6,3197.6,6.254691]
[1768337500255,1.40645797,3198.4,3197.6,3.1273455]
[1768337500464,4.53255028,3198.9,3197.6,6.499691]
[1768337500686,1.40645797,3198.8,3197.6,6.499691]
[1768337500996,0.002,3199.0,3197.7,0.03127247]
[1768337501201,0.002,3199.0,3197.8,0.9658309]
[1768337501406,0.002,3199.0,3197.9,0.03127052]
[1768337501558,0.002,3199.0,3197.8,0.9658309]
[1768337501754,0.002,3199.0,3197.9,6.25410424]
[1768337501973,0.002,3199.0,3198.0,1.3374706]
[1768337502287,0.002,3199.0,3198.1,1.00415748]
[1768337503492,0.002,3199.0,3198.2,1.36873818]
[1768337503791,0.002,3199.0,3198.3,6.25332206]
[1768337503951,0.002,3199.0,3198.3,3.12666103]
[1768337504379,0.002,3199.0,3198.3,6.25332206]
[1768337504586,0.002,3199.0,3198.3,7.11281707]
[1768337504966,0.001,3198.7,3198.3,8.45028767]
[1768337510464,0.001,3198.7,3198.3,5.32362664]
[1768337510667,0.001,3198.7,3198.3,8.45028767]
[1768337511708,0.001,3198.7,3198.4,1.3374706]
[1768337511877,0.001,3198.7,3198.5,2.49516547]
[1768337512077,0.001,3198.7,3198.6,0.245]
[1768337512563,0.001,3198.7,3198.6,3.37136778]
[1768337513160,0.001,3198.7,3198.6,4.70883838]
[1768337513361,1.40845797,3199.7,3198.7,1.3374706]
[1768337513696,1.40845797,3199.7,3198.9,1.3382718]
[1768337514573,1.40845797,3199.7,3199.0,3.12597686]
[1768337514895,0.002,3199.7,3199.1,1.5824706]
[1768337516592,0.002,3199.7,3199.2,6.25156288]
[1768337517480,0.001,3199.4,3199.2,6.25156288]
[1768337517687,0.001,3199.4,3199.3,0.64965629]
[1768337518904,0.001,3199.4,3199.3,3.77534003]
[1768337522698,0.001,3199.4,3199.3,0.64965629]
[1768337522888,0.001,3199.4,3199.2,3.12575786]
[1768337524516,0.002,3200.6,3199.7,1.3374706]
[1768337524818,1.12443705,3201.1,3200.2,1.3374706]
[1768337525022,1.12443705,3201.1,3200.3,3.36970705]
[1768337525223,1.54925897,3201.1,3200.3,6.4944141]
[1768337525419,4.25202249,3201.3,3200.3,4.72226272]
[1768337525590,4.25198511,3201.3,3200.3,4.72226272]
[1768337525785,1.12823306,3201.2,3200.3,4.72226272]
[1768337525990,1.12823306,3201.2,3200.3,7.84696977]
[1768337526321,3.2827929,3202.3,3200.8,1.35255567]
[1768337526322,1.12823306,3202.1,3200.8,1.35255567]
[1768337526616,1.13009797,3201.9,3200.8,0.245]
[1768337526806,1.13009797,3201.7,3200.8,0.245]
[1768337527018,1.13009797,3201.4,3199.8,1.35255567]
[1768337527317,1.16896071,3201.4,3200.0,1.35255567]
[1768337527514,1.13009797,3201.4,3200.3,3.1247038]
[1768337527720,1.13009797,3201.4,3200.4,0.245]
[1768337528890,1.13009797,3201.4,3200.4,1.59755567]
[1768337529106,0.002,3201.0,3200.5,1.35255567]
[1768337530700,0.002,3201.0,3200.4,3.36956291]
[1768337530701,0.002,3201.0,3200.4,0.245]
[1768337531108,0.002,3201.0,3200.4,3.36956714]
[1768337532901,0.002,3201.0,3200.4,0.245]
[1768337533520,0.002,3201.0,3200.5,1.35255567]
[1768337533820,0.002,3201.0,3200.6,1.35255567]
[1768337535015,0.002,3201.3,3200.9,1.35255567]
[1768337535216,0.002,3201.3,3200.5,0.47221651]
[1768337535217,0.002,3201.3,3201.0,1.59755567]
[1768337535417,9.61172865,3203.4,3200.5,0.47221651]
[1768337535418,1.14625161,3202.6,3201.2,1.35255567]
[1768337535586,1.14625161,3202.6,3200.5,0.91822914]
[1768337535587,1.14675544,3202.5,3200.6,1.35255567]
[1768337535794,1.14595456,3202.3,3200.8,1.35255567]
[1768337536004,1.14595456,3202.1,3200.9,0.245]
[1768337536187,1.14595456,3202.1,3200.9,1.59755567]
[1768337536506,1.14595456,3202.3,3201.3,1.35255567]
[1768337536711,1.14595456,3202.3,3201.4,0.245]
[1768337536914,1.14926189,3202.1,3201.3,0.245]
[1768337537100,1.14926189,3202.1,3201.2,0.245]
[1768337537296,1.14926189,3202.1,3200.8,4.50738304]
[1768337537512,1.14926189,3202.1,3201.1,0.245]
[1768337537902,1.15091417,3201.9,3201.1,0.245]
[1768337538115,0.73970104,3201.8,3201.1,0.245]
[1768337540291,3.86297018,3201.8,3201.1,0.245]
[1768337540925,3.86297018,3201.8,3201.1,1.62819893]
[1768337541226,0.73970104,3201.8,3201.1,3.36892527]
[1768337541520,0.002,3202.0,3201.2,1.38319893]
[1768337541692,6.24813444,3202.0,3201.2,1.38319893]
[1768337541896,0.03886274,3201.9,3201.2,1.38319893]
[1768337542319,3.12324317,3201.8,3201.2,1.38319893]
[1768337542524,4.28201224,3201.8,3200.7,5.23319893]
[1768337542696,4.28201224,3201.8,3200.8,1.62819893]
[1768337542697,0.42820122,3201.7,3200.8,1.62819893]
[1768337543499,0.42820122,3201.7,3200.8,4.75240895]
[1768337543891,0.42820122,3201.7,3200.9,1.38319893]
[1768337544320,6.24707168,3201.5,3200.7,3.85]
[1768337544523,1.20064232,3201.4,3200.7,0.245]
[1768337544727,0.7447714,3201.3,3200.6,0.001]
[1768337544905,0.7447714,3201.3,3200.6,0.246]
[1768337545330,1.16177958,3201.2,3200.6,0.001]
[1768337545633,1.20064232,3201.2,3200.6,0.001]
[1768337546293,7.41110998,3201.1,3200.6,0.001]
[1768337546492,0.74499727,3201.0,3200.4,0.245]
[1768337546689,0.74499727,3201.0,3200.0,1.38319893]
[1768337547153,0.74499727,3201.0,3200.1,1.62819893]
[1768337547294,0.74499727,3201.0,3200.2,0.245]
[1768337548632,6.24824268,3200.9,3200.2,0.245]
[1768337548793,0.699324,3200.8,3200.2,0.245]
[1768337550413,0.699324,3200.8,3200.2,1.62819893]
[1768337550599,3.82359661,3200.8,3200.2,1.62819893]
[1768337550800,3.82359661,3200.8,3200.2,0.245]
[1768337551202,3.82359661,3200.8,3200.2,1.62819893]
[1768337551432,3.82359661,3200.8,3200.3,0.245]
[1768337551433,0.38235966,3200.7,3200.3,0.245]
[1768337552017,1.16325768,3201.1,3200.3,0.245]
[1768337552217,6.24765712,3201.2,3200.4,1.38319893]
[1768337552524,3.12382856,3201.2,3200.4,1.38319893]
[1768337552731,3.12363341,3201.4,3200.5,1.38319893]
[1768337552903,0.62472397,3201.3,3200.5,1.38319893]
[1768337553236,0.62472397,3201.3,3200.6,1.41544307]
[1768337553604,3.1255394,3201.5,3200.6,1.41544307]
[1768337553811,0.002,3201.5,3200.8,1.38319893]
[1768337554010,6.24908342,3201.5,3200.9,1.62819893]
[1768337554636,6.24908342,3201.5,3200.6,0.001]
[1768337554637,1.17782556,3201.5,3200.6,0.001]
[1768337554841,1.17782556,3201.5,3200.9,0.245]
[1768337555002,0.74247021,3201.4,3200.9,0.245]
[1768337557025,3.86617143,3201.4,3200.9,0.245]
[1768337557412,0.002,3201.5,3200.9,1.69100876]
[1768337557730,0.002,3201.5,3201.0,1.44600876]
[1768337558836,3.12553824,3201.5,3201.0,1.44600876]
[1768337559052,0.002,3201.5,3200.9,0.245]
[1768337559288,1.18427803,3201.5,3200.6,0.001]
[1768337559546,1.18351745,3201.3,3200.6,0.001]
[1768337559926,1.18351745,3201.1,3200.3,0.245]
[1768337560123,1.18351745,3201.1,3200.1,1.44600876]
[1768337560334,1.18351745,3201.1,3200.3,0.245]
[1768337560710,1.18472765,3201.0,3199.8,1.44600876]
[1768337560926,1.22359039,3200.9,3199.9,0.245]
[1768337561215,6.24843788,3200.8,3199.9,0.245]
[1768337561415,0.74720283,3200.7,3199.9,0.245]
[1768337562114,0.74720283,3200.7,3199.9,1.69100876]
[1768337563221,3.12441417,3200.6,3199.9,1.69100876]
[1768337563439,3.87153409,3200.7,3199.9,1.69100876]
[1768337563650,6.99586535,3200.7,3199.9,1.69100876]
[1768337563851,0.69958654,3200.6,3199.9,0.245]
[1768337564256,0.69958654,3200.6,3199.6,1.44600876]
[1768337564427,0.69958654,3200.6,3199.9,0.245]
[1768337565026,0.69958654,3200.6,3199.6,1.44600876]
[1768337565227,0.69958654,3200.6,3199.9,0.245]
[1768337565228,3.12451179,3200.5,3199.9,0.245]
[1768337565430,6.24729835,3201.4,3200.0,1.44600876]
[1768337565748,6.24729835,3201.4,3200.2,1.44600876]
[1768337565948,6.24729835,3201.4,3200.3,1.47725583]
[1768337566159,6.24729835,3201.4,3200.4,1.69100876]
[1768337566453,0.002,3201.1,3200.4,0.245]
[1768337566834,1.2326566,3201.1,3200.2,0.001]
[1768337567038,1.2326566,3201.1,3200.2,0.246]
[1768337567238,7.43984134,3201.0,3200.2,0.246]
[1768337567432,0.74418413,3200.9,3200.2,0.246]
[1768337567639,0.74418413,3200.9,3200.2,1.69200876]
[1768337568354,0.002,3201.1,3200.3,1.44600876]
[1768337568854,3.12592615,3201.1,3200.3,1.44600876]
[1768337569268,0.002,3201.1,3200.3,1.44600876]
[1768337569564,0.03886274,3201.0,3200.3,1.44600876]
[1768337569855,1.19517156,3201.0,3199.7,0.245]
[1768337570036,1.19517156,3200.8,3199.7,1.69100876]
[1768337570359,0.03886274,3200.9,3199.7,1.69100876]
[1768337570776,1.2351606,3200.9,3199.7,1.69100876]
[1768337571668,1.19738623,3200.7,3199.7,0.245]
[1768337571878,2.29325328,3200.6,3199.7,0.245]
[1768337572048,2.25439054,3200.6,3199.7,0.245]
[1768337573471,1.23730315,3200.5,3199.1,1.44600876]
[1768337573657,7.44871455,3200.4,3199.1,4.81684871]
[1768337573862,1.10007392,3200.3,3199.2,1.44600876]
[1768337574247,1.06121118,3200.3,3199.2,1.44600876]
[1768337575754,1.06121118,3200.3,3199.4,1.44600876]
[1768337575973,6.24937448,3200.4,3199.6,1.44600876]
[1768337576276,6.24937448,3200.4,3199.6,1.69100876]
[1768337576976,9.37294965,3200.7,3199.6,1.69100876]
[1768337577157,10.57555046,3200.7,3199.6,1.69100876]
[1768337577365,1.24146355,3200.6,3199.3,1.44600876]
[1768337577559,1.20361369,3200.4,3199.3,1.44600876]
[1768337578362,0.03886274,3200.3,3199.3,1.44600876]
[1768337579082,6.24960938,3200.2,3199.3,1.44600876]
[1768337579256,6.24960938,3200.2,3199.2,3.37077699]
[1768337579257,6.24960938,3200.2,3199.2,0.245]
[1768337579456,7.45422409,3200.2,3199.2,0.245]
[1768337579671,0.74542241,3200.1,3199.2,0.245]
[1768337579977,0.74542241,3200.1,3199.6,0.001]
[1768337580177,0.74542241,3200.1,3199.2,1.69100876]
[1768337580481,0.74542241,3200.1,3199.4,1.44600876]
[1768337580680,3.12480469,3200.2,3199.4,1.44600876]
[1768337580880,6.24960938,3200.2,3199.4,1.44600876]
[1768337581449,6.24921884,3200.4,3199.4,1.44600876]
[1768337582281,3.12453779,3200.5,3199.5,1.44600876]
[1768337582479,6.24907558,3200.5,3199.5,1.44600876]
[1768337582787,6.24907558,3200.5,3199.7,1.44600876]
[1768337582979,0.03886274,3200.4,3199.7,0.245]
[1768337583175,3.12453779,3200.5,3199.7,0.245]
[1768337583362,3.12641417,3200.6,3199.7,1.69100876]
[1768337583563,6.25082834,3200.6,3199.7,1.69100876]
[1768337583768,0.74593473,3200.5,3199.7,1.69100876]
[1768337585490,3.12470705,3200.3,3199.7,1.69100876]
[1768337586195,0.03886274,3200.2,3199.7,1.69100876]
[1768337586484,3.12467378,3200.4,3199.7,1.69100876]
[1768337586485,6.24926888,3200.4,3199.7,1.69100876]
[1768337586888,0.03886274,3200.3,3199.7,0.245]
[1768337587066,0.62881316,3200.2,3199.7,0.245]
[1768337587394,3.16383157,3200.1,3199.6,0.245]
[1768337587875,7.81016696,3200.1,3199.1,1.74430321]
[1768337588081,7.81016696,3200.1,3199.2,1.49930321]
[1768337588389,1.1563802,3200.0,3199.2,1.49930321]
[1768337588794,1.1563802,3200.0,3199.3,1.49930321]
[1768337589388,4.68519813,3200.4,3199.2,3.12572669]
[1768337589389,0.002,3200.6,3199.7,4.62458879]
[1768337589594,0.002,3200.6,3199.8,1.49930321]
[1768337592392,0.002,3200.6,3199.8,1.74430321]